[Event "Baku Open 2024"]
[Site "Baku"]
[Date "2024.07.05"]
[Round "7.1"]
[White "Movahed, Sina"]
[Black "Narayanan S L"]
[Result "0-1"]
[ECO "B90"]
[WhiteElo "2482"]
[BlackElo "2668"]
[Annotator "TA"]
[PlyCount "94"]
[EventDate "2024.06.29"]
[EventType "swiss"]
[EventCountry "AZE"]
[SourceTitle "playchess.com"]
[Source "ChessBase"]
[SourceQuality "1"]
[TimeControl "5400+30"]

{[%evp 33,94,-19,0,-6,0,0,0,0,0,-22,-12,-10,0,-25,0,0,0,-25,0,0,0,0,0,0,37,26,26,-21,-21,-18,-33,-190,-197,-326,-238,-266,-258,-337,-323,-441,-430,-436,-445,-593,-466,-463,-414,-394,-445,-406,-406,-399,-403,-447,-440,-547,-520,-559,-551,-581,-585,-935,-920]} 1. e4 {[%emt 0:00:26]} c5 {[%emt 0:00:05]} 2. Nf3 {[%emt 0:00:06]} d6 {[%emt 0:00:05]} 3. d4 {[%emt 0:00:05]} cxd4 {[%emt 0:00:05]} 4. Nxd4 {[%emt 0:00:04]} Nf6 {[%emt 0:00:05]} 5. Nc3 {[%emt 0:00:04]} a6 {[%emt 0:00:04]} 6. Bd3 {[%emt 0:00:16]} g6 $1 {[%emt 0:00:15][%mdl 4] is recently more successful than 6...e5.} 7. f3 {[%emt 0:00:15] B90: Sicilian Najdorf: Unusual White 6th moves, 6 Be3 Ng4 and 6 Be3 e5.} e5 {[%emt 0:00:11]} 8. Nb3 {[%emt 0:00:08]} Be6 {[%emt 0:00:05]} 9. Be3 {[%emt 0:00:07]} Nbd7 {[%emt 0:00:41]} 10. Qd2 {[%emt 0:00:09]} b5 {[%emt 0:00:15]} 11. O-O {[%emt 0:00:07]} Be7 {[%emt 0:02:08]} 12. Be2 $146 {[%emt 0:11:38]} ({Predecessor:} 12. Bh6 b4 13. Na4 Nh5 14. Be3 Rb8 15. c3 a5 16. Rfd1 O-O 17. Rac1 Nf4 18. Ba6 {½-½ Csernus,R (2044)-Pilgram,K (2138) RA-2023-0-00719 2022}) 12... O-O {[%emt 0:03:37]} 13. Kh1 {[%emt 0:05:45]} Nb6 {[%emt 0:01:58]} 14. Na5 {[%emt 0:06:19]} Qc7 {[%emt 0:21:41]} 15. a4 {[%emt 0:02:47]} b4 {[%emt 0:02:02]} 16. Na2 {[%emt 0:00:12]} Bxa2 {[%emt 0:00:16]} 17. Rxa2 {[%emt 0:01:01]} d5 {[%emt 0:00:08]} 18. Bd3 $1 {[%emt 0:03:13]} (18. c3 dxe4 19. fxe4 (19. cxb4 Nbd5 $17) 19... Nxe4 $17) 18... Rfc8 {[%emt 0:13:43]} 19. Qe1 {[%emt 0:14:19]} Nh5 {[%emt 0:12:23]} (19... Nbd7 $5 20. Nb3 $8 a5 $15) 20. g3 {[%emt 0:10:32]} Nc4 {[%emt 0:02:27]} 21. Nb3 {[%emt 0:01:37]} Nxe3 {[%emt 0:01:58]} 22. Qxe3 {[%emt 0:00:06]} Nf6 {[%emt 0:03:18]} 23. a5 {[%emt 0:00:21]} Re8 {[%emt 0:09:31]} 24. Raa1 {[%emt 0:01:09]} Kg7 {[%emt 0:03:04]} 25. Qe2 {[%emt 0:01:17]} Qc6 {[%emt 0:00:34]} 26. exd5 {[%emt 0:02:36]} Nxd5 {[%emt 0:01:04]} 27. Rad1 {[%emt 0:00:37]} Red8 $1 {[%emt 0:01:52]} 28. Nd2 {[%emt 0:10:21]} Qc7 {[%emt 0:02:34]} 29. Nc4 {[%emt 0:02:10]} Rac8 {[%emt 0:03:06]} 30. Rfe1 {[%emt 0:01:39]} (30. Nxe5 $142 Qxa5 31. Bxa6) 30... f6 $11 {[%emt 0:00:16]} 31. Qe4 {[%emt 0:08:34]} Bc5 {[%emt 0:01:03]} 32. h4 $2 {[%emt 0:00:55]} (32. Be2 $15 Ne7 33. f4 exf4 34. Qxf4 Qxf4 35. gxf4) 32... Bf2 $19 {[%emt 0:01:05]} 33. h5 {[%emt 0:00:25]} (33. Rf1 {was necessary.} f5 (33... Bxg3 34. Qg4 $19) 34. Qxe5+ Qxe5 35. Nxe5 Bxg3 (35... Ne3 $2 36. Kh2 $19) 36. Nc4) 33... Bxe1 {[%emt 0:00:40]} (33... gxh5 $2 34. Re2 (34. Qxh7+ Kf8 $11) 34... Bd4 35. Qxh7+ Kf8 36. Qf5 $16 (36. Qxh5 Qg7 $18)) 34. Rxe1 {[%emt 0:00:06]} Ne7 {[%emt 0:00:16]} (34... gxh5 35. Qxh7+ Kf8 36. Qh8+ (36. Qxh5 Qg7 $17) 36... Ke7 37. Qh7+ (37. Qxh5 $2 Rh8 $19) 37... Kf8 38. Qh8+ (38. Qxh5 Qg7 $17) 38... Ke7 39. Qh7+ (39. Qxh5 $2 Rh8 $19) 39... Kf8 $11) 35. Nb6 {[%emt 0:02:36]} Rd4 {[%emt 0:00:09]} 36. h6+ {[%emt 0:00:44]} Kf8 {[%emt 0:00:37]} (36... Kxh6 $2 37. Qe3+ Kg7 38. Nxc8 Qxc8 (38... Nd5 39. Qe2 $11) 39. Kg1 $19) 37. Qe2 {[%emt 0:00:53]} Rcd8 {[%emt 0:00:12]} 38. Be4 {[%emt 0:01:16]} Qc5 {[%emt 0:00:46]} 39. Qxa6 {[%emt 0:00:43]} Rd1 {[%emt 0:01:15]} 40. Qe2 {[%emt 0:02:16]} (40. Rxd1 {leads to mate.} Rxd1+) 40... Rxe1+ {[%emt 0:00:19]} 41. Qxe1 {[%emt 0:00:01]} Qxa5 {[%emt 0:00:09]} 42. Nc4 {[%emt 0:00:53]} Qc5 {[%emt 0:00:03]} 43. b3 {[%emt 0:01:49]} Nf5 {[%emt 0:00:29]} 44. Bxf5 {[%emt 0:01:05]} gxf5 {[%emt 0:00:01]} 45. Kg2 {[%emt 0:00:23]} Kf7 {[%emt 0:00:35]} 46. Qa1 {[%emt 0:04:52]} Kg6 {[%emt 0:16:20]} 47. Qa6 {[%emt 0:00:06]} Rd1 {[%emt 0:00:00]} ({Weaker is} 47... Kxh6 48. Qxf6+ Kh5 49. Qxf5+ (49. Qxd8 Kg6 $18) 49... Kh6 50. Qf6+ Kh5 51. g4#) 0-1

[Event "Baku Open 2024"]
[Site "Baku"]
[Date "2024.07.05"]
[Round "7.2"]
[White "Puranik, Abhimanyu"]
[Black "Suleymanli, Aydin"]
[Result "1-0"]
[ECO "C54"]
[WhiteElo "2632"]
[BlackElo "2626"]
[Annotator "TA"]
[PlyCount "97"]
[EventDate "2024.06.29"]
[EventType "swiss"]
[EventCountry "AZE"]
[SourceTitle "playchess.com"]
[Source "ChessBase"]
[SourceQuality "1"]
[TimeControl "5400+30"]

{[%evp 44,97,18,33,19,13,10,13,11,0,38,0,9,7,0,0,125,127,135,142,169,175,162,125,115,135,192,200,203,205,198,154,554,568,577,454,455,433,462,452,458,415,702,701,1229,1181,1695,1650,1801,1610,29967,29972,29973,29974,29947,6398]} 1. e4 {[%emt 0:00:09]} e5 {[%emt 0:00:05]} 2. Nf3 {[%emt 0:00:06]} Nc6 {[%emt 0:00:05]} 3. Bc4 {[%emt 0:00:24]} Nf6 {[%emt 0:00:05]} 4. d3 {[%emt 0:00:04]} Bc5 {[%emt 0:00:04]} 5. c3 {[%emt 0:00:24]} d6 {[%emt 0:00:13]} 6. b4 {[%emt 0:00:39]} Bb6 {[%emt 0:00:05]} 7. a4 {[%emt 0:00:02]} a5 {[%emt 0:00:07]} 8. b5 {[%emt 0:00:03]} Ne7 {[%emt 0:00:05]} 9. O-O {[%emt 0:00:46]} O-O {[%emt 0:00:21]} 10. Nbd2 {[%emt 0:00:15]} Ng6 {[%emt 0:03:36]} 11. d4 {[%emt 0:00:46] C54: Giuoco Piano: 4 c3 Nf6, main lines with 5 d4 and 5 d3.} Bg4 {[%emt 0:00:14]} 12. Qc2 {[%emt 0:03:30]} Qd7 {[%emt 0:05:33]} 13. Re1 $5 {[%emt 0:04:02][%mdl 4] now scores much better than the old 13.dxe5. Leaves trodden paths.} Rfe8 {[%emt 0:14:49]} 14. Bb2 {[%emt 0:00:09]} Nf4 {[%emt 0:03:03]} 15. Bf1 {[%emt 0:00:18]} Bh5 {[%emt 0:02:48]} 16. h3 {[%emt 0:12:57]} Rad8 {[%emt 0:06:43]} 17. Kh2 {[%emt 0:12:20]} h6 {[%emt 0:21:09]} 18. g3 {[%emt 0:05:19]} Ne6 {[%emt 0:00:55]} 19. Bg2 {[%emt 0:01:26]} exd4 $146 {[%emt 0:03:39]} ({Predecessor:} 19... Ng5 20. Nxg5 hxg5 21. Nc4 exd4 22. cxd4 Bg6 23. Rad1 g4 24. d5 gxh3 25. Nxb6 cxb6 26. Bxh3 {1-0 Abdusattorov,N (2766)-Grischuk,A (2719) Tashkent UzChess Masters 2024 (5)}) 20. cxd4 {[%emt 0:01:05]} d5 {[%emt 0:01:30]} 21. exd5 {[%emt 0:24:03]} Qxd5 {[%emt 0:09:36]} 22. Re5 {[%emt 0:00:04]} Bg6 {[%emt 0:02:02]} 23. Qc3 {[%emt 0:04:18]} Qd7 {[%emt 0:00:35]} 24. Nc4 {[%emt 0:04:28]} Be4 {[%emt 0:07:00]} 25. Re1 {[%emt 0:02:33]} (25. Nxa5 $2 Bxf3 26. Qxf3 (26. Bxf3 $2 Bxd4 27. Qb3 Bxe5 $19) 26... Bxa5 $19) 25... Bd5 {[%emt 0:00:58]} 26. R5e2 {[%emt 0:01:21]} (26. Nxa5 $2 Bxf3 (26... Ra8 27. Nc4 $11) 27. Qxf3 (27. Bxf3 $2 Bxd4 28. Qc1 Bxe5 $19) 27... Bxa5 $19) (26. Rc1 $5) 26... Ng5 {[%emt 0:04:16]} 27. Nfe5 {[%emt 0:11:30]} (27. Nxa5 $2 Bxf3 28. Rxe8+ Nxe8 $19 (28... Rxe8 $2 29. Rxe8+ Nxe8 30. Nc4 $19)) 27... Qe6 {[%emt 0:03:05]} 28. f3 $1 {[%emt 0:05:08]} (28. Nxa5 $2 Bxg2 29. g4 Bxh3 (29... Bxd4 $2 30. Qa3 $19) 30. Nxb7 Rxd4 $19 (30... Nxg4+ 31. Nxg4 Qxg4 32. Rxe8+ Rxe8 33. Rxe8+ Kh7 34. Qg3 $19)) 28... Bxc4 {[%emt 0:04:11]} 29. Qxc4 {[%emt 0:00:04]} (29. Nxc4 Qxe2 30. Rxe2 Rxe2) 29... Bxd4 {[%emt 0:00:18]} (29... Qxc4 $11 {remains equal.} 30. Nxc4 Rxe2 31. Rxe2 Bxd4) 30. Qxc7 $1 $16 {[%emt 0:01:07]} Bxb2 {[%emt 0:02:39]} 31. Rxb2 {[%emt 0:01:43]} Qf5 {[%emt 0:03:22]} 32. f4 {[%emt 0:00:53]} (32. Qxa5 Nd5) 32... Nd5 {[%emt 0:00:42]} 33. Qc2 {[%emt 0:02:04]} (33. Qxb7 Nxf4 34. gxf4 (34. Rf2 $2 Ngxh3 35. Be4 Qf6 $19) 34... Qxf4+ 35. Kh1 Rxe5 $15) 33... Qxc2 {[%emt 0:00:15]} 34. Rxc2 {[%emt 0:00:03]} Ne6 {[%emt 0:00:17] [#]} (34... Nh7 $16 {was worth a try.} 35. Rc5 Nhf6) 35. Nc4 $1 $18 {[%emt 0:01:28]} Nb4 {[%emt 0:01:01]} 36. Rce2 {[%emt 0:00:03]} Nd3 {[%emt 0:00:53]} 37. Rd1 {[%emt 0:00:11]} Rd4 $2 {[%emt 0:00:57]} (37... Ndc5 $16 38. Rxd8 Rxd8 39. Nxa5 Rd7) 38. f5 $18 {[%emt 0:01:20]} (38. Bxb7 Rxc4 39. Rxd3 Rb8 $14) 38... Ndf4 {[%emt 0:01:36]} 39. gxf4 {[%emt 0:00:56]} Rxd1 {[%emt 0:00:02]} 40. fxe6 {[%emt 0:00:05]} Rxe6 {[%emt 0:00:35]} 41. Rxe6 {[%emt 0:00:06]} fxe6 {[%emt 0:00:01]} 42. Bxb7 {[%emt 0:01:44]} (42. Nxa5 Ra1 43. Nxb7 (43. Bxb7 Rxa4 44. Nc6 Rxf4 $16) 43... Rxa4 $18) 42... Rd4 {[%emt 0:00:05]} (42... Ra1 $142 43. b6 (43. Nxa5 Rxa4 44. Nc6 Rxf4 $16) 43... Rxa4) 43. Bc8 $1 $18 {[%emt 0:00:25]} (43. Nxa5 Rxf4 44. Bc8 Rxa4 45. Bxe6+ Kf8 $18) 43... Kf8 {[%emt 0:00:48]} 44. Bxe6 {[%emt 0:00:31]} ({Not} 44. Nxa5 Rxa4 45. Nc6 Ra2+ 46. Kg3 Rb2 $18) 44... Re4 {[%emt 0:01:04]} 45. f5 {[%emt 0:00:27]} Re2+ {[%emt 0:00:01]} 46. Kg3 {[%emt 0:00:09]} Ra2 {[%emt 0:00:13]} 47. b6 {[%emt 0:00:18]} Rxa4 {[%emt 0:00:22]} 48. b7 {[%emt 0:00:03]} Rb4 {[%emt 0:00:03]} 49. Nxa5 {[%emt 0:00:05]} 1-0

[Event "Baku Open 2024"]
[Site "Baku"]
[Date "2024.07.05"]
[Round "7.3"]
[White "Mamedov, Rauf"]
[Black "Ahmadzada, Ahmad"]
[Result "1-0"]
[ECO "A07"]
[WhiteElo "2651"]
[BlackElo "2481"]
[Annotator "TA"]
[PlyCount "77"]
[EventDate "2024.06.29"]
[EventType "swiss"]
[EventCountry "AZE"]
[SourceTitle "playchess.com"]
[Source "ChessBase"]
[SourceQuality "1"]
[TimeControl "5400+30"]

{[%evp 10,77,28,24,22,19,18,-9,16,20,27,32,32,20,20,-8,12,0,0,0,0,0,0,0,35,34,156,136,128,131,215,205,251,252,232,212,260,37,404,254,301,297,284,289,402,291,468,258,266,284,276,268,268,277,245,151,433,394,441,414,445,411,450,413,358,278,622,551,29990,29991]} 1. Nf3 {[%emt 0:00:06]} d5 {[%emt 0:00:18]} 2. g3 {[%emt 0:00:08]} Nf6 {[%emt 0:00:20]} 3. Bg2 {[%emt 0:00:06]} c6 {[%emt 0:00:11]} 4. O-O {[%emt 0:00:07]} Bg4 {[%emt 0:00:09]} 5. h3 {[%emt 0:00:11]} Bh5 {[%emt 0:00:19]} 6. d4 {[%emt 0:00:51] A07: Réti Opening: New York and Capablanca Systems.} e6 {[%emt 0:01:36]} 7. c4 {[%emt 0:01:51]} Nbd7 {[%emt 0:02:28]} 8. Ne5 {[%emt 0:01:08]} Bd6 {[%emt 0:07:32]} 9. f4 {[%emt 0:07:09]} Ne4 $146 {[%emt 0:14:53]} ({Predecessor:} 9... O-O 10. Nc3 Bg6 11. Nxg6 hxg6 12. e4 dxe4 13. Nxe4 Nxe4 14. Bxe4 Nf6 15. Bf3 Qb6 {½-½ Kosteniuk,A (2501)-Gunina,V (2437) Swiss Queens Wed #2 blitz 2024 (8)}) 10. Bxe4 {[%emt 0:21:19]} dxe4 {[%emt 0:04:07]} 11. Nc3 {[%emt 0:00:19]} f5 {[%emt 0:09:31]} 12. Be3 {[%emt 0:05:05]} g5 {[%emt 0:05:57]} 13. Qb3 {[%emt 0:15:25]} gxf4 {[%emt 0:08:19]} 14. Bxf4 {[%emt 0:01:44]} Nxe5 {[%emt 0:00:55]} 15. dxe5 {[%emt 0:01:24]} Bc5+ {[%emt 0:00:22]} 16. Kh2 {[%emt 0:00:49]} Qe7 {[%emt 0:04:13]} 17. Rad1 {[%emt 0:04:00]} O-O {[%emt 0:02:05]} (17... Rg8 $14) 18. g4 $1 $16 {[%emt 0:11:52]} Bg6 {[%emt 0:09:13] [#]} 19. gxf5 $1 {[%emt 0:02:22]} Bxf5 {[%emt 0:09:04]} (19... exf5 $16 20. Na4 Rfd8 21. Nxc5 Qxc5) 20. Na4 $18 {[%emt 0:01:31]} Bg6 {[%emt 0:01:40]} (20... Bb4 $2 21. Bg5 Qe8 (21... Qxg5 $2 22. Rg1 $18) 22. Rg1 $18 (22. Qxb4 Qh5 $18)) 21. Qg3 {[%emt 0:07:02]} Rf5 {[%emt 0:02:55]} 22. Bh6 {[%emt 0:05:40]} Rh5 {[%emt 0:02:18]} 23. Bc1 $2 {[%emt 0:01:41]} ({White must play} 23. Nxc5 $18 Rxh6 24. Nxe4) 23... b5 $2 {[%emt 0:03:50][%mdl 8192]} (23... Bb4 $14) 24. cxb5 {[%emt 0:00:43]} cxb5 {[%emt 0:00:14]} 25. Nxc5 {[%emt 0:00:51]} Qxc5 {[%emt 0:00:05] [#]} 26. Bg5 $1 {[%emt 0:00:50]} e3 {[%emt 0:01:47]} 27. Bf6 {[%emt 0:02:32]} (27. Bxe3 Qxe5 28. Rd4 Qxg3+ 29. Kxg3 Re5 $11) 27... Qc2 $2 {[%emt 0:06:33]} (27... Qc4 28. Qxe3 Qe4 29. Qxe4 Bxe4 30. Rg1+ Bg6) 28. Qxe3 {[%emt 0:00:16]} (28. Qg4 $142 Rf5 29. Rc1) 28... Qe4 $18 {[%emt 0:00:45]} 29. Qxe4 {[%emt 0:03:40]} Bxe4 {[%emt 0:00:07]} 30. Rd4 {[%emt 0:00:58]} Bf5 {[%emt 0:00:45]} 31. h4 {[%emt 0:00:04]} Rh6 {[%emt 0:00:16]} 32. Rff4 {[%emt 0:02:39]} Bb1 $2 {[%emt 0:00:59]} (32... Rxf6 $16 33. exf6 e5 34. Rxf5 exd4) 33. Rd7 {[%emt 0:00:31]} Bxa2 {[%emt 0:01:03]} 34. b3 {[%emt 0:00:32]} a5 {[%emt 0:01:41]} 35. Rg7+ {[%emt 0:00:12]} Kf8 {[%emt 0:00:06]} 36. Rb7 {[%emt 0:00:03]} Kg8 {[%emt 0:00:17]} 37. Rxb5 {[%emt 0:00:10]} ({Much less strong is} 37. Rg7+ Kf8 38. Rb7 Kg8 39. Rg7+ (39. Rxb5 Bb1 $18)) 37... Rc8 $2 {[%emt 0:00:58]} (37... Bb1 38. Rb7 Bg6) 38. Rb7 $18 {[%emt 0:00:17]} (38. Rxa5 Bxb3 39. Ra7 Bd5 $16) 38... Rh5 {[%emt 0:01:07]} 39. Rg4+ {[%emt 0:00:13]} 1-0

[Event "Baku Open 2024"]
[Site "Baku"]
[Date "2024.07.05"]
[Round "7.4"]
[White "Abasov, Nijat"]
[Black "Shuvalova, Polina"]
[Result "1/2-1/2"]
[ECO "D02"]
[WhiteElo "2621"]
[BlackElo "2467"]
[Annotator "TA"]
[PlyCount "113"]
[EventDate "2024.06.29"]
[EventType "swiss"]
[EventCountry "AZE"]
[SourceTitle "playchess.com"]
[Source "ChessBase"]
[SourceQuality "1"]
[TimeControl "5400+30"]

{[%evp 24,113,4,0,0,0,0,-14,-8,-31,0,0,0,-39,-43,-113,-93,-109,-100,-94,0,0,0,0,0,0,0,0,0,0,0,0,13,0,0,0,0,0,0,0,0,0,0,0,0,0,0,0,0,0,0,0,0,0,0,0,0,0,0,0,0,0,0,0,0,0,0,0,0,0,0,0,0,0,0,0,0,0,0,0,0,0,0,0,0,0,0,0,0,0,0,0]} 1. d4 {[%emt 0:02:47]} d5 {[%emt 0:01:35]} 2. Nf3 {[%emt 0:00:11]} Nf6 {[%emt 0:00:06]} 3. Bf4 {[%emt 0:00:07]} Bf5 {[%emt 0:00:09]} 4. e3 {[%emt 0:00:43]} e6 {[%emt 0:00:04]} 5. Nbd2 {[%emt 0:00:04]} Bd6 {[%emt 0:00:29]} 6. Ne5 {[%emt 0:00:13]} Nbd7 {[%emt 0:02:26] D02: 1 d4 d5 2 Nf3 sidelines, including 2...Nf6 3 g3 and 2...Nf6 3 Bf4.} 7. Be2 {[%emt 0:00:24]} h6 {[%emt 0:00:37]} 8. c4 {[%emt 0:00:21]} O-O {[%emt 0:02:28]} 9. O-O {[%emt 0:09:36]} a5 $146 {[%emt 0:01:03]} ({Predecessor:} 9... Qe7 10. Rc1 c6 11. Qb3 Rab8 12. Nxd7 Qxd7 13. Bxd6 Qxd6 14. Qc3 Rfe8 15. b4 a6 {½-½ Xu,Y (2549)-Liu,Y (2530) CHN-chT Div-A 2022 (8.5)}) 10. Rc1 {[%emt 0:02:54]} a4 {[%emt 0:00:22]} 11. a3 {[%emt 0:00:11]} Qe7 {[%emt 0:02:06]} 12. Bg3 {[%emt 0:11:15]} c6 {[%emt 0:02:34]} 13. f4 {[%emt 0:04:12]} Ne4 {[%emt 0:05:30]} 14. Nxe4 {[%emt 0:02:07]} Bxe4 {[%emt 0:01:55]} 15. Bd3 {[%emt 0:00:59]} Bxd3 {[%emt 0:08:52]} 16. Qxd3 {[%emt 0:00:55]} Nf6 {[%emt 0:01:30]} 17. Bh4 {[%emt 0:09:42]} g5 $1 {[%emt 0:02:17]} 18. fxg5 {[%emt 0:00:09]} Ne4 {[%emt 0:00:11]} 19. Ng4 {[%emt 0:01:06]} (19. gxh6 $2 {loses.} Qxh4 20. h7+ Qxh7 $19) (19. cxd5 $15 cxd5 20. Nc4) 19... hxg5 $17 {[%emt 0:01:11]} 20. Nf6+ {[%emt 0:00:13] [#]} Kg7 $1 {[%emt 0:05:22]} (20... Nxf6 $2 {too greedy.} 21. Bxg5 Kg7 (21... dxc4 $2 22. Qd1 $18) 22. Bxf6+ Qxf6 23. Rxf6 Kxf6 24. c5 $18) 21. Bxg5 {[%emt 0:01:06]} Bxh2+ {[%emt 0:04:40]} (21... Nxg5 $17 22. Nh5+ Kh8) 22. Kxh2 $11 {[%emt 0:00:07]} Rh8+ {[%emt 0:00:08]} 23. Kg1 {[%emt 0:00:09]} Nxg5 {[%emt 0:00:04]} 24. e4 {[%emt 0:03:11]} Nxe4 {[%emt 0:20:14]} 25. Nxe4 {[%emt 0:01:15]} dxe4 {[%emt 0:00:08]} 26. Qxe4 {[%emt 0:00:06]} Rh6 {[%emt 0:11:38]} 27. Rc3 {[%emt 0:03:40]} Rg6 {[%emt 0:02:57]} 28. Rg3 {[%emt 0:09:41]} Rxg3 {[%emt 0:05:48]} 29. Qe5+ {[%emt 0:00:11]} f6 {[%emt 0:00:05]} 30. Qxg3+ {[%emt 0:00:07]} Kf7 {[%emt 0:00:03]} 31. Rf4 {[%emt 0:08:19]} Rg8 {[%emt 0:00:36]} 32. Qf2 {[%emt 0:00:06]} Rg6 {[%emt 0:01:31]} 33. Rh4 {[%emt 0:02:29]} Qd6 {[%emt 0:02:24]} 34. Qf3 {[%emt 0:01:08]} Rg7 {[%emt 0:01:00]} 35. Kf2 {[%emt 0:01:59]} Ke7 {[%emt 0:01:59]} 36. g3 {[%emt 0:00:51]} Kf7 {[%emt 0:00:59]} 37. Rf4 {[%emt 0:03:42]} Rg6 {[%emt 0:01:21]} 38. Qh5 {[%emt 0:03:35]} Kg7 {[%emt 0:00:06]} 39. Qf3 {[%emt 0:00:32]} Kf7 {[%emt 0:00:06]} 40. Kg2 {[%emt 0:00:14]} Kg7 {[%emt 0:01:59]} 41. Rh4 {[%emt 0:03:33]} Rg5 {[%emt 0:00:10]} 42. Kh2 {[%emt 0:01:27]} Rg6 {[%emt 0:00:31]} 43. Kg2 {[%emt 0:02:44]} Rg5 {[%emt 0:00:05]} 44. Qd3 {[%emt 0:00:09]} Rg6 {[%emt 0:00:24]} 45. Rh5 {[%emt 0:00:38]} f5 {[%emt 0:06:08]} 46. Rh4 {[%emt 0:05:03]} b5 {[%emt 0:00:10]} 47. cxb5 {[%emt 0:00:27]} Qd5+ {[%emt 0:01:19]} 48. Kf2 {[%emt 0:00:11]} cxb5 {[%emt 0:02:29]} 49. Qc3 {[%emt 0:02:22]} Qc4 {[%emt 0:00:15]} 50. Qxc4 {[%emt 0:00:53]} bxc4 {[%emt 0:00:03]} 51. Kf3 {[%emt 0:00:06]} Kf6 {[%emt 0:01:10]} 52. Kf4 {[%emt 0:00:10]} e5+ {[%emt 0:00:33]} 53. dxe5+ {[%emt 0:01:09]} Ke6 {[%emt 0:00:02]} 54. Kf3 {[%emt 0:01:29]} Kd5 {[%emt 0:00:13]} 55. Kf4 {[%emt 0:00:23]} Ke6 {[%emt 0:00:15]} 56. Kf3 {[%emt 0:06:21]} Kd5 {[%emt 0:00:04]} 57. Kf4 {[%emt 0:00:06]} 1/2-1/2

[Event "Baku Open 2024"]
[Site "Baku"]
[Date "2024.07.05"]
[Round "7.5"]
[White "Agmanov, Zhandos"]
[Black "Aditya Mittal"]
[Result "0-1"]
[ECO "B90"]
[WhiteElo "2464"]
[BlackElo "2595"]
[Annotator "TA"]
[PlyCount "110"]
[EventDate "2024.06.29"]
[EventType "swiss"]
[EventCountry "AZE"]
[SourceTitle "playchess.com"]
[Source "ChessBase"]
[SourceQuality "1"]
[TimeControl "5400+30"]

{[%evp 37,110,0,29,15,16,-52,-56,-60,-65,-47,-52,-45,-50,-53,-47,-42,-51,-47,-35,-36,-54,-126,-81,-77,-71,-79,-88,-85,-83,-85,-97,-92,-99,-69,-31,-33,-37,-40,-37,-30,-28,-22,-3,-32,-21,-25,0,-35,-42,-81,-44,-58,0,-8,0,-56,-46,-50,-42,-43,0,-412,-52,-358,-363,-355,-349,-363,-362,-358,-356,-1175,-1152,-29980,-10122]} 1. e4 {[%emt 0:05:38]} c5 {[%emt 0:00:01]} 2. Nf3 {[%emt 0:00:10]} d6 {[%emt 0:00:02]} 3. d4 {[%emt 0:00:37]} cxd4 {[%emt 0:00:02]} 4. Nxd4 {[%emt 0:00:09]} Nf6 {[%emt 0:00:01]} 5. Nc3 {[%emt 0:00:11]} a6 {[%emt 0:00:01]} 6. Be3 {[%emt 0:00:41]} e5 {[%emt 0:00:02]} 7. Nf3 {[%emt 0:00:10]} Be7 {[%emt 0:00:15]} 8. Bc4 {[%emt 0:00:10]} O-O {[%emt 0:00:03]} 9. O-O {[%emt 0:00:09]} Nc6 {[%emt 0:00:01]} 10. Re1 {[%emt 0:00:08] B90: Sicilian Najdorf: Unusual White 6th moves, 6 Be3 Ng4 and 6 Be3 e5.} Be6 {[%emt 0:00:19] 10...b5 is vanishing.} 11. Nd5 {[%emt 0:00:27]} Bxd5 {[%emt 0:00:17]} 12. exd5 {[%emt 0:00:21]} Nb8 $5 {[%emt 0:00:01][%mdl 4] An interesting side line.} 13. Bf1 $146 {[%emt 0:08:25]} ({Predecessor:} 13. a4 Nbd7 14. a5 Ng4 15. Bc1 f5 16. Bf1 Bf6 17. h3 Nh6 18. c4 Nf7 19. b4 {1-0 Karjakin,S (2760)-Ivanchuk,V (2729) Medias King blitz 11th 2017 (10)}) 13... Nbd7 {[%emt 0:03:57]} 14. c4 {[%emt 0:00:43]} a5 {[%emt 0:09:13]} 15. b3 {[%emt 0:11:06]} Ng4 {[%emt 0:09:09]} 16. Bd2 {[%emt 0:08:29]} f5 {[%emt 0:03:36]} 17. h3 {[%emt 0:03:10]} Ngf6 {[%emt 0:01:20]} 18. a3 {[%emt 0:07:00]} Ne4 {[%emt 0:03:18]} 19. Be3 {[%emt 0:06:35]} Ng5 {[%emt 0:21:43]} 20. Bxg5 {[%emt 0:10:16]} Bxg5 {[%emt 0:00:06]} 21. b4 {[%emt 0:00:53]} (21. Nxg5 $11 Qxg5 22. b4) 21... Bf6 $1 $15 {[%emt 0:01:45]} 22. Rc1 {[%emt 0:09:05]} axb4 {[%emt 0:09:39]} 23. axb4 {[%emt 0:00:59]} Qb6 {[%emt 0:00:42]} 24. c5 {[%emt 0:07:36]} Qxb4 {[%emt 0:00:28]} 25. c6 {[%emt 0:01:41]} Nc5 {[%emt 0:00:37]} 26. Rb1 {[%emt 0:00:58]} Qa5 {[%emt 0:00:36]} 27. Nd2 {[%emt 0:05:12]} Qc7 {[%emt 0:02:42]} 28. Nc4 {[%emt 0:01:15]} e4 {[%emt 0:03:36]} 29. cxb7 {[%emt 0:04:35]} (29. Qd2 $15) 29... Ra7 {[%emt 0:03:49]} 30. Rb6 {[%emt 0:01:17]} Nxb7 {[%emt 0:01:41]} ({Much worse is} 30... Rxb7 $6 31. Rxd6 Nd7 32. Rc6 $14) 31. Rc6 {[%emt 0:02:01]} Qe7 {[%emt 0:00:02]} 32. Qd2 {[%emt 0:00:59]} f4 {[%emt 0:10:07]} 33. Qxf4 {[%emt 0:03:14]} Bh4 {[%emt 0:00:12]} 34. Qxe4 {[%emt 0:01:13]} Bxf2+ {[%emt 0:01:04]} 35. Kh2 {[%emt 0:00:59]} Qg5 {[%emt 0:04:06]} 36. Rc8 $1 {[%emt 0:00:30]} Nd8 {[%emt 0:00:54]} 37. Rd1 {[%emt 0:00:56]} Bg3+ {[%emt 0:03:31]} 38. Kh1 {[%emt 0:00:45]} Re7 {[%emt 0:02:57]} 39. Qd3 {[%emt 0:00:14]} Rfe8 {[%emt 0:02:30]} 40. Qf3 {[%emt 0:01:00]} h5 {[%emt 0:00:15]} 41. Rb8 {[%emt 0:00:28]} Kh7 {[%emt 0:02:03]} (41... Rf8 {with more complications.} 42. Qd3 Bf4 43. Rdb1 g6) 42. Rbb1 {[%emt 0:00:30]} (42. Bd3+ $5 g6 43. Rf1 $11) 42... Kh6 {[%emt 0:00:19]} 43. Qa3 {[%emt 0:00:30]} Nf7 {[%emt 0:00:33]} 44. Qf3 {[%emt 0:00:08]} Nh8 {[%emt 0:01:53]} (44... Ne5 $15 45. Nxe5 Rxe5) 45. Qa3 {[%emt 0:00:53]} Nf7 {[%emt 0:01:38]} (45... Qf4 $11 {might be stronger.}) 46. Qf3 $15 {[%emt 0:00:01]} g6 {[%emt 0:00:16]} 47. Bd3 {[%emt 0:00:38]} Be1 {[%emt 0:00:52]} 48. Bf1 {[%emt 0:00:36]} Qh4 {[%emt 0:00:51]} 49. Qd3 $2 {[%emt 0:00:35][%mdl 8192]} (49. Rxe1 $1 $11 Rxe1 50. Rxe1 Rxe1 51. Qxf7) 49... Bg3 $2 {[%emt 0:00:30]} ({Black should play} 49... Ng5 $1 $19 50. Nxd6 Rf8) 50. Nd2 $2 {[%emt 0:00:37][%mdl 8192]} ({White should try} 50. Rb3 $15 Re1 51. Rxe1 Rxe1 52. Rb1) 50... Re3 $19 {[%emt 0:00:16]} 51. Qc4 {[%emt 0:00:30] [#]} Bf4 $1 {[%emt 0:00:41]} 52. Rb4 {[%emt 0:00:01]} g5 {[%emt 0:00:25]} 53. Qd4 {[%emt 0:00:10] [#]} R8e5 $1 {[%emt 0:00:42]} 54. Nf3 $2 {[%emt 0:00:58]} (54. Qa1 Rf5 (54... Rxd5 55. Qf6+ Kh7 56. Qxf7+ Kh6 57. Qf6+ Kh7 58. Rb7+) 55. Nf3) 54... Qg3 $19 {[%emt 0:00:20]} 55. Rb2 {[%emt 0:00:51]} g4 {[%emt 0:00:35]} 0-1